bitfinex/quotes_ETHUSD_20240607
["timestamp","ask_amount","ask_price","bid_price","bid_amount"]
[1717733522327,2.62201,3813.9,3813.7,0.784]
[1717733522682,2.62201,3813.9,3813.8,0.13113638]
[1717733525402,2.62162,3814.5,3813.8,0.46537002]
[1717733525603,2.62162,3814.5,3814.4,0.784]
[1717733525830,3.17162,3814.5,3814.4,0.784]
[1717733526031,3.17162,3814.5,3813.8,0.33423364]
[1717733526234,3.17162,3814.5,3814.4,0.784]
[1717733529933,3.17162,3814.5,3814.2,0.784]
[1717733530340,3.17162,3814.5,3814.3,0.13098415]
[1717733530910,3.17162,3814.5,3814.2,0.784]
[1717733531351,3.17162,3814.5,3814.3,0.13098415]
[1717733531737,3.17162,3814.5,3814.2,0.784]
[1717733531942,3.17162,3814.5,3813.6,2.4272]
[1717733532250,3.17162,3814.5,3814.2,0.784]
[1717733532456,3.17162,3814.5,3814.4,0.784]
[1717733535349,2.62187,3814.1,3813.3,9.9381]
[1717733535660,2.62187,3814.1,3814.0,0.784]
[1717733536535,2.62187,3814.1,3814.0,0.91498415]
[1717733539562,2.62187,3814.1,3814.0,0.13098415]
[1717733539763,3.17187,3814.1,3814.0,0.91498415]
[1717733539927,3.17187,3814.1,3814.0,0.784]
[1717733540260,3.17187,3814.1,3814.0,0.91502625]
[1717733548473,3.722387,3814.1,3814.0,0.13102625]
[1717733548658,3.722387,3814.1,3813.8,0.784]
[1717733548855,2.62198,3813.9,3813.8,0.784]
[1717733549047,3.17198,3813.9,3813.8,0.784]
[1717733549704,3.17198,3813.9,3813.1,2.2511]
[1717733549705,2.62225,3813.6,3813.1,2.2511]
[1717733549980,2.62225,3813.6,3813.5,0.784]
[1717733550546,2.62225,3813.6,3813.5,0.91513638]
[1717733553591,2.62225,3813.6,3813.5,0.13113638]
[1717733553892,2.62225,3813.6,3813.5,0.784]
[1717733554274,2.62225,3813.6,3813.5,0.91513638]
[1717733558286,2.62225,3813.6,3813.5,0.13113638]
[1717733558510,2.62225,3813.6,3813.5,0.784]
[1717733558699,2.62225,3813.6,3813.5,0.91513638]
[1717733560002,2.62225,3813.6,3813.5,0.13113638]
[1717733560209,2.939475,3813.6,3813.5,0.13113638]
[1717733560406,2.62243,3813.3,3812.7,1.36668126]
[1717733560576,2.62243,3813.3,3813.2,0.784]
[1717733561299,2.62243,3813.3,3813.2,0.91525627]
[1717733561510,2.62243,3813.3,3813.2,0.13125627]
[1717733561876,2.62243,3813.3,3813.2,0.784]
[1717733562079,2.62243,3813.3,3813.2,0.91525627]
[1717733565402,2.62243,3813.3,3813.2,0.13125627]
[1717733565604,2.62243,3813.3,3813.2,0.91525627]
[1717733565818,2.62243,3813.3,3813.2,0.784]
[1717733566127,2.62243,3813.3,3813.2,0.91525627]
[1717733567314,2.62224,3813.6,3813.2,3.32085627]
[1717733567518,2.62224,3813.6,3813.5,0.784]
[1717733568075,2.62224,3813.6,3813.5,0.91524979]
[1717733569310,2.62224,3813.6,3813.5,0.13124979]
[1717733572610,2.62224,3813.6,3813.5,0.784]
[1717733573149,2.62224,3813.6,3813.5,0.91515259]
[1717733584569,2.62205,3813.9,3813.5,0.91515259]
[1717733584725,2.62205,3813.9,3813.7,0.784]
[1717733584726,0.55,3813.8,3813.7,0.784]
[1717733585061,0.55,3813.8,3813.7,0.91515259]
[1717733596080,0.55,3813.8,3813.7,0.784]
[1717733601509,0.55,3813.8,3813.7,0.91511696]
[1717733602421,0.55,3813.8,3813.7,0.784]
[1717733602801,2.62205,3813.9,3813.7,0.784]
[1717733603187,2.62184,3814.2,3813.8,0.13119146]
[1717733603407,2.62184,3814.2,3814.1,3.2699]
[1717733603921,2.62184,3814.2,3814.1,0.13119146]
[1717733604313,2.62184,3814.2,3814.1,0.784]
[1717733604489,2.62184,3814.2,3814.1,0.91519146]
[1717733605710,2.61923074,3814.2,3814.1,0.91519146]
[1717733609447,2.61923074,3814.2,3814.1,1.25530061]
[1717733610359,2.57014113,3814.2,3814.1,1.25530061]
[1717733614874,2.5873,3814.9,3814.2,2.3709]
[1717733614875,2.62161,3814.5,3814.2,2.3709]
[1717733615106,2.62161,3814.5,3814.4,0.784]
[1717733615311,2.62161,3814.5,3814.4,0.91484484]
[1717733615476,2.62141,3814.8,3814.4,1.27743024]
[1717733615678,2.62141,3814.8,3814.4,0.3625854]
[1717733615679,0.55,3814.7,3814.4,0.3625854]
[1717733615911,0.55,3814.7,3814.6,0.784]
[1717733616407,0.55,3814.7,3814.6,0.91477034]
[1717733617809,2.62141,3814.8,3814.6,0.91477034]
[1717733618010,0.05,3814.9,3814.7,2.331]
[1717733618213,0.05,3814.9,3814.8,0.784]
[1717733618372,0.05,3814.9,3814.8,0.914725]
[1717733618572,0.05,3814.9,3814.8,3.245725]
[1717733629817,2.62042,3816.2,3814.9,2.4076]
[1717733630124,2.62042,3816.2,3815.6,2.4076]
[1717733630329,2.62042,3816.2,3815.1,2.4076]
[1717733630491,2.62042,3816.2,3816.1,0.784]
[1717733631599,3.17042,3816.2,3816.1,0.784]
[1717733632025,3.17042,3816.2,3816.1,0.91401589]
[1717733632333,2.4517,3816.4,3816.1,0.91401589]
[1717733632544,2.4517,3816.4,3816.3,0.784]
[1717733632838,3.50905156,3816.4,3816.3,0.784]
[1717733633123,3.50905156,3816.4,3816.3,0.91401589]
[1717733633687,3.50905156,3816.4,3816.3,0.13001589]
[1717733633888,3.50905156,3816.4,3816.1,0.784]
[1717733634126,3.0017,3816.4,3816.2,0.13001589]
[1717733634387,3.0017,3816.4,3816.3,0.784]
[1717733634587,3.0017,3816.4,3816.2,0.13001589]
[1717733634810,3.0017,3816.4,3816.1,0.784]
[1717733634811,3.0017,3816.4,3815.7,2.4076]
[1717733635100,3.0017,3816.4,3816.1,0.784]
[1717733635286,3.0017,3816.4,3816.2,0.13001589]
[1717733637125,2.62033,3816.3,3816.2,0.13001589]
[1717733637323,2.62078,3815.7,3814.8,2.4834]
[1717733637528,2.4243,3815.6,3814.9,0.12538779]
[1717733637728,2.62088,3815.5,3814.8,2.4834]
[1717733637936,2.62104,3815.3,3814.9,0.12538779]
[1717733638105,2.62104,3815.3,3815.2,0.784]
[1717733638299,2.62104,3815.3,3815.2,0.12539424]
[1717733638616,2.62104,3815.3,3814.5,2.4834]
[1717733638813,2.62104,3815.3,3815.2,0.90939424]
[1717733639036,2.62104,3815.3,3815.2,0.784]
[1717733639191,2.62104,3815.3,3815.2,0.90939424]
[1717733640488,2.62104,3815.3,3815.2,0.12539424]
[1717733640693,2.62121,3815.1,3814.2,2.73350034]
[1717733640889,2.62121,3815.1,3815.0,0.784]
[1717733641222,3.17097,3815.4,3815.0,0.784]
[1717733641532,2.62076,3815.7,3815.2,0.784]
[1717733641702,2.62076,3815.7,3815.6,0.784]
[1717733643902,2.62101,3815.4,3814.8,2.4622]
[1717733644219,2.62101,3815.4,3815.3,0.784]
[1717733644795,0.55,3815.7,3815.3,0.90961035]
[1717733644796,2.62075,3815.7,3815.3,0.90961035]
[1717733644996,2.62075,3815.7,3815.6,0.784]
[1717733645518,2.62093,3815.5,3814.9,0.24622]
[1717733645717,2.62093,3815.5,3815.4,0.784]
[1717733646207,2.62093,3815.5,3815.4,0.90961035]
[1717733648047,2.62093,3815.5,3815.4,0.12561035]
[1717733648546,2.62117,3815.1,3814.9,0.784]
[1717733649119,2.62098,3815.4,3814.9,0.784]
[1717733649342,2.62098,3815.4,3815.3,0.784]
[1717733651427,9.9155,3816.4,3815.3,0.784]
[1717733651747,1.881969,3816.3,3815.7,0.784]
[1717733652323,2.62074,3815.8,3815.7,0.784]
[1717733652738,2.62086,3815.6,3815.5,0.784]
[1717733652937,2.62086,3815.6,3815.5,0.90975225]
[1717733655322,3.17086,3815.6,3815.5,0.12575225]
[1717733657939,2.62019,3816.6,3815.5,2.58335225]
[1717733657940,2.62065,3815.9,3815.5,2.58335225]
[1717733658241,2.62065,3815.9,3815.8,0.784]
[1717733658435,2.62065,3815.9,3815.5,0.12575225]
[1717733658641,2.62065,3815.9,3815.8,0.12559419]
[1717733658837,2.62065,3815.9,3815.2,2.4576]
[1717733658838,2.62079,3815.7,3815.2,2.4576]
[1717733659039,2.62079,3815.7,3815.5,0.784]
[1717733662470,2.62079,3815.7,3815.2,2.4576]
[1717733662666,2.62079,3815.7,3815.5,0.784]
[1717733662834,2.62089,3815.5,3814.7,2.3603]
[1717733663029,2.62089,3815.5,3814.8,1.3659091]
[1717733663271,2.62089,3815.5,3815.4,0.784]
[1717733663475,2.62089,3815.5,3814.7,2.99485219]
[1717733663691,2.62089,3815.5,3815.4,0.784]
[1717733663829,3.17089,3815.5,3815.4,0.784]
[1717733665395,2.62089,3815.5,3815.4,0.784]
[1717733665590,2.62089,3815.5,3814.7,2.99485219]
[1717733665891,2.62089,3815.5,3815.3,0.784]
[1717733666300,2.62106,3815.3,3815.1,0.784]
[1717733668748,2.62106,3815.3,3814.3,0.54515725]
[1717733668955,2.62106,3815.3,3815.1,0.784]
[1717733669791,0.56641467,3815.9,3815.1,0.784]
[1717733669977,2.471,3816.8,3815.8,0.784]
[1717733670291,2.471,3816.8,3816.1,0.784]
[1717733670870,2.471,3816.8,3815.2,0.32505]
[1717733670871,2.471,3816.8,3815.9,0.784]
[1717733671055,3.03733449,3816.8,3815.9,0.784]
[1717733671254,2.62038,3816.3,3815.9,0.784]
[1717733672467,2.62038,3816.3,3816.1,0.784]
[1717733674523,2.62038,3816.3,3815.9,0.784]
[1717733676324,2.62049,3816.1,3815.8,0.784]
[1717733676621,2.62049,3816.1,3815.9,0.12095752]
[1717733682683,2.62049,3816.1,3815.8,0.784]
[1717733683084,2.62049,3816.1,3816.0,0.784]
[1717733683385,2.62049,3816.1,3816.0,0.90495752]
[1717733684445,2.62049,3816.1,3816.0,0.12095752]
[1717733685385,2.62049,3816.1,3815.7,0.784]
[1717733685580,2.62049,3816.1,3815.8,0.12101856]
[1717733685891,2.62049,3816.1,3815.7,0.784]
[1717733686304,2.62049,3816.1,3815.8,0.12101856]
[1717733686624,2.62049,3816.1,3815.7,0.784]
[1717733687000,2.62049,3816.1,3815.8,0.12101856]
[1717733687202,2.62049,3816.1,3815.7,0.784]
[1717733687386,2.62049,3816.1,3815.8,0.12101856]
[1717733687588,2.62049,3816.1,3815.7,0.784]
[1717733687787,2.62049,3816.1,3815.8,0.12101856]
[1717733688022,2.62049,3816.1,3815.7,0.784]
[1717733688389,2.62049,3816.1,3815.8,0.12101856]
[1717733688722,2.62049,3816.1,3815.7,0.784]
[1717733689223,2.62049,3816.1,3816.0,0.784]
[1717733689931,2.62049,3816.1,3816.0,0.90508925]
[1717733691987,2.62049,3816.1,3816.0,0.12108925]
[1717733692229,2.62049,3816.1,3816.0,0.784]
[1717733692426,2.62049,3816.1,3816.0,0.90508282]
[1717733696548,2.62049,3816.1,3816.0,0.12108282]
[1717733696902,2.62049,3816.1,3815.9,0.784]
[1717733697102,2.62049,3816.1,3816.0,0.12108282]
[1717733698655,2.62049,3816.1,3816.0,0.1210732]
[1717733699221,2.62049,3816.1,3815.8,0.784]
[1717733699544,2.62049,3816.1,3815.9,0.1210732]
[1717733700722,2.62075,3815.7,3815.5,0.784]
[1717733706222,2.62075,3815.7,3815.3,2.4129]
[1717733706526,2.62075,3815.7,3815.6,0.784]
[1717733707279,2.62075,3815.7,3815.3,2.4129]
[1717733707479,2.62075,3815.7,3815.5,0.784]
[1717733711048,2.882825,3815.7,3815.6,0.11713218]
[1717733711339,3.432825,3815.7,3815.6,0.11713218]
[1717733711545,2.62075,3815.7,3815.6,0.784]
[1717733711703,2.62075,3815.7,3815.0,2.2961]
[1717733711901,2.62075,3815.7,3815.6,0.90113705]
[1717733712109,2.62075,3815.7,3815.6,0.784]
[1717733712312,2.62075,3815.7,3815.6,0.90113705]
[1717733713921,2.62058,3816.0,3815.6,0.90113705]
[1717733714147,2.62058,3816.0,3815.9,0.784]
[1717733714501,2.62058,3816.0,3815.9,0.90112424]
[1717733717524,2.62037,3816.3,3815.9,0.90112424]
[1717733717864,2.62037,3816.3,3816.2,0.784]
[1717733718438,2.62037,3816.3,3816.2,0.90102495]
[1717733718643,2.62037,3816.3,3816.2,0.11702495]
[1717733719513,2.62037,3816.3,3816.1,0.784]
[1717733720025,2.62166561,3816.7,3816.2,0.11702495]
[1717733720328,2.62166561,3816.7,3816.4,0.784]
[1717733720930,2.62166561,3816.7,3816.5,0.11702495]
[1717733721122,2.62166561,3816.7,3816.4,0.784]
[1717733721318,2.62027,3816.4,3816.2,0.784]
[1717733721747,2.62027,3816.4,3816.3,0.11681038]
[1717733722354,2.62027,3816.4,3816.2,0.784]
[1717733722564,2.62027,3816.4,3816.3,0.11681038]
[1717733722966,2.62027,3816.4,3816.2,0.784]
[1717733723115,2.62027,3816.4,3816.3,0.11681038]
[1717733723555,2.62027,3816.4,3816.2,0.784]
[1717733723763,2.62027,3816.4,3816.3,0.30785]
[1717733724263,2.62027,3816.4,3816.3,0.42466038]
[1717733724425,2.62027,3816.4,3816.3,1.20866038]
[1717733724627,2.62027,3816.4,3816.3,1.09185]
[1717733725751,2.62027,3816.4,3816.3,0.784]
[1717733727350,0.00158561,3816.7,3816.3,0.784]
[1717733727351,2.62169561,3816.7,3816.3,0.784]
[1717733727548,2.62169561,3816.7,3816.3,0.11681038]
[1717733727732,2.62169561,3816.7,3816.5,0.784]
[1717733734256,2.62169561,3816.7,3815.8,2.2953]
[1717733734257,2.62034,3816.3,3815.8,2.2953]
[1717733734578,2.62034,3816.3,3816.1,0.784]
[1717733735358,2.62034,3816.3,3816.2,0.11680398]
[1717733737380,2.62018,3816.6,3816.2,0.11680398]
[1717733737679,2.62018,3816.6,3816.5,0.784]
[1717733738038,2.62018,3816.6,3816.5,0.90080398]
[1717733739760,2.62018,3816.6,3816.5,0.11680398]
[1717733739962,2.62018,3816.6,3816.5,0.784]
[1717733740160,2.62018,3816.6,3816.5,0.90080398]
[1717733740551,2.62018,3816.6,3816.5,0.11680398]
[1717733740751,2.62018,3816.6,3816.5,0.784]
[1717733740947,2.62018,3816.6,3816.5,0.90080398]
[1717733745594,2.62018,3816.6,3816.5,0.11680398]
[1717733745796,2.62018,3816.6,3816.5,0.90080398]
[1717733745978,2.62018,3816.6,3816.5,0.784]
[1717733746300,2.62018,3816.6,3816.5,0.90076555]
[1717733754802,4.88808,3816.6,3816.5,0.11676555]
[1717733755103,2.62033,3816.3,3816.2,0.784]
[1717733755289,2.62033,3816.3,3816.2,0.90076555]
[1717733756561,2.62033,3816.3,3816.2,0.11676555]
[1717733756986,2.62033,3816.3,3816.0,0.784]
[1717733758430,2.62033,3816.3,3815.5,2.4911]
[1717733758431,2.62058,3816.0,3815.5,2.4911]
[1717733758565,2.62058,3816.0,3815.9,0.784]
[1717733759252,2.62058,3816.0,3815.9,0.90086802]
[1717733759505,2.62058,3816.0,3815.9,0.11686802]
[1717733759877,2.62083,3815.6,3815.2,2.4577]
[1717733760076,2.62083,3815.6,3815.5,0.784]
[1717733760605,2.62083,3815.6,3815.5,0.11687122]
[1717733761104,2.6211,3815.2,3815.0,0.41046464]
[1717733761306,2.62084,3815.6,3815.1,0.784]
[1717733761491,2.62084,3815.6,3815.3,0.784]
[1717733762008,2.62084,3815.6,3815.5,0.784]
[1717733762207,2.6206,3816.0,3815.6,2.381]
[1717733762371,2.2901,3816.5,3815.9,0.784]
[1717733762372,2.62031,3816.4,3815.9,0.784]
[1717733762565,2.62031,3816.4,3816.2,0.784]
[1717733765266,2.62165561,3816.7,3816.2,0.784]
[1717733767205,2.62165561,3816.7,3816.4,0.784]
[1717733767505,2.62165561,3816.7,3816.5,0.11686162]
[1717733769488,2.62165561,3816.7,3816.6,0.784]
[1717733770115,2.62165561,3816.7,3816.6,0.90086162]
[1717733771810,2.62165561,3816.7,3816.6,0.11686162]
[1717733772213,2.62165561,3816.7,3816.5,0.784]
[1717733772886,2.62165561,3816.7,3816.6,0.11686162]
[1717733778796,2.62165561,3816.7,3816.6,0.90086162]
[1717733778998,2.62165561,3816.7,3816.6,0.784]
[1717733779200,2.62165561,3816.7,3816.6,0.90086162]
[1717733780595,0.00158561,3816.7,3816.6,0.90086162]
[1717733782260,0.00158561,3816.7,3816.6,0.11686162]
[1717733782427,0.00158561,3816.7,3816.6,3.34956162]
[1717733782749,0.00158561,3816.7,3816.6,3.34930544]
[1717733783052,0.00158561,3816.7,3816.6,3.68423598]
[1717733785676,0.00158561,3816.7,3816.6,3.34930544]
[1717733786438,0.00158561,3816.7,3816.6,0.90060544]
[1717733786639,0.00158561,3816.7,3816.6,0.11660544]
[1717733786866,0.00158561,3816.7,3816.6,0.784]
[1717733787069,0.00158561,3816.7,3816.6,0.90060544]
[1717733795823,0.00158561,3816.7,3816.6,0.11660544]
[1717733795970,0.00158561,3816.7,3816.6,0.90060544]
[1717733796165,0.00158561,3816.7,3816.6,0.784]
[1717733796371,0.00158561,3816.7,3816.6,0.90056381]
[1717733798642,0.00158561,3816.7,3816.6,0.11656381]
[1717733800299,2.62014,3816.6,3815.9,2.4451]
[1717733800570,2.62014,3816.6,3816.0,0.11656381]
[1717733800702,2.62014,3816.6,3816.2,0.784]
[1717733801104,2.62014,3816.6,3816.3,0.11656381]
[1717733801301,2.62027,3816.4,3815.6,2.4451]
[1717733801554,2.62027,3816.4,3814.9,1.2060675]
[1717733801555,2.62046,3816.2,3815.7,0.11656381]
[1717733801810,2.62046,3816.2,3815.4,2.4451]
[1717733802019,0.55,3816.1,3815.8,0.90056381]
[1717733802261,0.55,3816.1,3815.8,0.784]
[1717733802568,0.55,3816.1,3815.9,0.11656381]
[1717733802717,0.55,3816.1,3816.0,0.784]
[1717733803106,0.55,3816.1,3816.0,0.90056381]
[1717733804053,2.62046,3816.2,3816.0,0.90056381]
[1717733804360,2.3765,3816.5,3816.0,3.37066381]
[1717733804361,2.6202,3816.5,3816.0,3.37066381]
[1717733804665,2.6202,3816.5,3816.3,0.784]
[1717733805141,2.6202,3816.5,3816.4,0.11682961]
[1717733805301,3.1702,3816.5,3816.4,0.11682961]
[1717733805952,2.6202,3816.5,3816.4,0.11682961]
[1717733808406,2.61994,3816.9,3816.4,0.11682961]
[1717733808745,2.61994,3816.9,3816.6,0.784]
[1717733809474,2.61994,3816.9,3816.6,0.90082961]
[1717733809748,5.02984,3816.9,3816.6,0.90082961]
[1717733810053,5.02984,3816.9,3816.6,0.11682961]
[1717733810406,2.62170561,3816.7,3816.4,0.784]
[1717733810607,2.62170561,3816.7,3816.6,0.11682961]
[1717733810840,2.62170561,3816.7,3816.4,0.784]
[1717733811325,2.62170561,3816.7,3816.5,0.11682961]
[1717733812647,2.62027,3816.4,3816.3,0.784]
[1717733813255,2.62043,3816.2,3815.7,2.4795]
[1717733813438,2.62043,3816.2,3815.8,0.28899646]
[1717733813608,2.62043,3816.2,3816.0,0.784]
[1717733816089,2.62043,3816.2,3815.6,0.41046456]
[1717733816376,2.62043,3816.2,3816.0,0.784]
[1717733817277,2.62043,3816.2,3816.1,0.11676234]
[1717733817878,2.461,3816.4,3815.6,0.41046456]
[1717733817879,2.62058,3816.0,3815.6,0.41046456]
[1717733818077,2.62058,3816.0,3815.9,0.784]
[1717733818278,2.62072,3815.8,3815.6,0.41046456]
[1717733818574,2.62072,3815.8,3815.7,0.784]
[1717733818737,2.62072,3815.8,3815.6,0.41046456]
[1717733818940,2.62072,3815.8,3815.7,0.784]
[1717733820755,2.62072,3815.8,3815.6,0.41046456]
[1717733821072,2.62072,3815.8,3815.7,0.784]
[1717733825579,2.62072,3815.8,3815.7,3.1599]
[1717733826256,2.62072,3815.8,3815.7,0.784]
[1717733829381,2.62072,3815.8,3815.6,0.41046456]
[1717733829696,2.882792,3815.8,3815.6,0.41046456]
[1717733831499,5.503512,3815.8,3815.0,20.0]
[1717733831705,5.503512,3815.8,3815.1,0.784]
[1717733831706,2.62111,3815.2,3815.1,0.784]
[1717733832294,2.62111,3815.2,3815.1,0.10954479]
[1717733832972,2.62111,3815.2,3815.1,0.89354479]
[1717733834562,2.62111,3815.2,3815.1,0.10954479]
[1717733834773,3.17111,3815.2,3815.1,0.10954479]
[1717733835006,3.17111,3815.2,3815.1,0.89354479]
[1717733836594,3.17111,3815.2,3815.1,0.10954479]
[1717733844488,3.488221,3815.2,3815.1,0.10954479]
[1717733845300,8.517631,3815.2,3815.1,0.10954479]
[1717733845905,8.517631,3815.2,3815.0,20.0]
[1717733846201,0.55,3815.1,3815.0,20.0]
[1717733849742,1.64393747,3816.2,3815.0,20.784]
[1717733849943,2.6204,3816.2,3816.1,0.784]
[1717733854505,2.6204,3816.2,3815.2,2.62103]
[1717733854707,2.6204,3816.2,3816.1,0.784]
[1717733855829,13.4734,3816.2,3816.1,0.784]
[1717733858839,13.4734,3816.2,3816.1,0.89404146]
[1717733862019,13.4734,3816.2,3816.1,0.784]
[1717733862722,2.62062,3815.9,3815.1,5.08163]
[1717733862923,2.62062,3815.9,3815.8,0.784]
[1717733863820,2.61950974,3815.9,3815.8,0.784]
[1717733864018,2.61950974,3815.9,3815.1,5.08163]
[1717733864272,2.61950974,3815.9,3815.8,0.784]
[1717733865546,2.61950974,3815.9,3815.1,5.08163]
[1717733865720,2.61950974,3815.9,3815.8,0.784]
[1717733869740,2.61950974,3815.9,3815.8,0.89367213]
[1717733876529,2.61950974,3815.9,3815.8,0.784]
[1717733878247,2.61950974,3815.9,3815.4,2.3127]
[1717733878443,2.61950974,3815.9,3815.8,0.89352196]
[1717733878650,2.61950974,3815.9,3815.8,0.784]
[1717733878867,2.62076,3815.7,3815.0,22.62118]
[1717733879173,2.62076,3815.7,3815.6,0.784]
[1717733882586,2.62076,3815.7,3815.6,3.0406]
[1717733883883,2.6206,3816.0,3815.6,3.0406]
[1717733884079,2.6206,3816.0,3815.9,0.784]
[1717733886156,2.62073,3815.8,3815.3,2.2825]
[1717733886363,2.62073,3815.8,3815.7,0.784]
[1717733886879,2.62073,3815.8,3815.7,0.89355063]
[1717733889655,2.882803,3815.8,3815.7,0.10955063]
[1717733889855,2.62116,3815.1,3815.0,20.0]
[1717733890162,2.62116,3815.1,3815.0,20.784]
[1717733890871,2.62098,3815.4,3815.0,20.784]
[1717733891091,2.62098,3815.4,3815.3,0.784]
[1717733892217,8.014,3815.8,3815.3,0.784]
[1717733892218,2.62078,3815.7,3815.4,2.4002]
[1717733892413,2.62078,3815.7,3815.6,0.784]
[1717733893519,2.62101,3815.4,3815.0,20.0]
[1717733893831,2.62101,3815.4,3815.3,0.784]
[1717733898715,2.62079,3815.7,3815.3,0.784]
[1717733898924,2.62079,3815.7,3815.6,0.784]
[1717733902731,2.62093,3815.5,3815.0,20.0]
[1717733903040,2.62093,3815.5,3815.4,0.784]
[1717733905635,2.62074,3815.8,3815.4,0.784]
[1717733905834,2.62074,3815.8,3815.7,0.784]
[1717733906038,3.17074,3815.8,3815.7,0.784]
[1717733906244,2.62074,3815.8,3815.7,0.784]
[1717733906536,2.62074,3815.8,3815.7,0.89361429]
[1717733914149,10.853,3816.2,3815.7,1.22111572]
[1717733914335,10.853,3816.2,3816.1,0.784]
[1717733915158,10.853,3816.2,3816.1,0.89361429]
[1717733915354,10.853,3816.2,3816.1,0.10961429]
[1717733915653,10.853,3816.2,3816.1,0.89361429]
[1717733925323,10.853,3816.2,3816.1,0.10961429]
[1717733925559,10.853,3816.2,3816.1,0.784]
[1717733925866,10.853,3816.2,3816.1,0.89347423]
[1717733935300,10.853,3816.2,3816.1,0.10947423]
[1717733935462,2.6206,3816.0,3815.2,5.11675]
[1717733935663,2.6206,3816.0,3815.9,0.784]
[1717733935990,2.6207,3815.8,3815.3,3.0]
[1717733936152,2.6207,3815.8,3815.2,5.11675]
[1717733936354,2.6207,3815.8,3815.7,0.784]
[1717733936780,2.62085,3815.6,3815.2,2.4957]
[1717733936981,2.62085,3815.6,3815.5,0.784]
[1717733937586,2.62085,3815.6,3815.5,0.88993332]
[1717733940354,2.62085,3815.6,3815.5,0.10593332]
[1717733940555,2.62098,3815.4,3815.0,22.4957]
[1717733940755,2.62098,3815.4,3815.3,0.784]
[1717733940957,2.62098,3815.4,3815.0,22.4957]
[1717733941211,2.62098,3815.4,3815.3,0.784]
[1717733941573,2.62098,3815.4,3815.0,22.4957]
[1717733941780,2.62098,3815.4,3815.3,0.784]
[1717733942154,2.62098,3815.4,3815.0,20.0]
[1717733942494,2.62111,3815.2,3815.0,20.0]
[1717733942703,2.62111,3815.2,3815.1,0.784]
[1717733944487,2.62111,3815.2,3815.0,20.0]
[1717733944692,2.62111,3815.2,3815.1,0.784]
[1717733945098,2.62111,3815.2,3815.0,20.0]
[1717733945403,2.62111,3815.2,3815.1,0.784]
[1717733951979,2.62111,3815.2,3815.1,3.2133]
[1717733952202,2.62111,3815.2,3815.1,3.31940844]
[1717733953389,2.62094,3815.5,3815.1,3.31940844]
[1717733953594,2.62094,3815.5,3815.4,0.784]
[1717733955316,7.464,3815.8,3815.5,2.4757]
[1717733955317,10.08474,3815.8,3815.5,2.4757]
[1717733955675,10.08474,3815.8,3815.7,0.784]
[1717733955871,10.08474,3815.8,3815.7,0.89015938]
[1717733956076,10.08474,3815.8,3815.7,0.10615938]
[1717733956401,10.08474,3815.8,3815.7,0.784]
[1717733956916,2.62083,3815.6,3815.1,2.62115]
[1717733957087,2.62083,3815.6,3815.5,0.784]
[1717733960743,2.62067,3815.9,3815.5,0.784]
[1717733960945,0.55,3815.8,3815.0,22.62122]
[1717733961259,0.55,3815.8,3815.7,0.784]
[1717733962627,2.62067,3815.9,3815.7,0.784]
[1717733967247,2.62067,3815.9,3815.8,0.10598425]
[1717733967544,2.62067,3815.9,3815.7,0.784]
[1717733967696,2.62067,3815.9,3815.8,0.10598425]
[1717733967892,2.62067,3815.9,3815.7,0.784]
[1717733968110,2.62067,3815.9,3815.8,0.10598425]
[1717733968311,2.62067,3815.9,3815.7,0.784]
[1717733968509,2.62067,3815.9,3815.8,0.10598425]
[1717733968757,2.62067,3815.9,3815.8,0.784]
[1717733970942,2.62067,3815.9,3815.2,2.62104]
[1717733971144,2.62067,3815.9,3815.8,0.88998425]
[1717733971300,2.62067,3815.9,3815.8,0.784]
[1717733978965,2.62067,3815.9,3815.8,0.88994288]
[1717733987347,2.62067,3815.9,3815.8,0.784]
[1717733989978,2.62067,3815.9,3815.2,2.4379]
[1717733990166,2.62075,3815.7,3815.2,2.4379]
[1717733990471,2.62075,3815.7,3815.6,0.784]
[1717733991315,2.62075,3815.7,3815.2,2.4379]
[1717733991653,2.62075,3815.7,3815.6,0.784]
[1717733997283,2.62075,3815.7,3815.6,0.88994925]
[1717733999982,2.62075,3815.7,3815.6,0.10594925]
[1717734000180,2.62075,3815.7,3815.2,2.4379]
[1717734000480,2.62075,3815.7,3815.6,0.88994925]
[1717734000682,2.62092,3815.5,3815.2,2.4379]
[1717734000855,2.62092,3815.5,3815.4,0.784]
[1717734001062,2.3067,3815.9,3815.0,22.3433]
[1717734001272,3.45799042,3815.8,3815.4,0.784]
[1717734001587,2.62075,3815.7,3815.6,0.784]
[1717734001749,3.73715423,3815.7,3815.6,0.784]
[1717734001950,4.94939769,3815.7,3815.6,0.784]
[1717734002270,4.38299346,3815.7,3815.6,0.784]
[1717734002447,2.62111,3815.2,3815.0,20.0]
[1717734002982,2.62111,3815.2,3815.1,0.784]
[1717734008187,2.62111,3815.2,3815.1,3.2071]
[1717734008890,2.62094,3815.5,3815.1,3.2071]
[1717734009071,2.62094,3815.5,3815.1,2.4231]
[1717734009415,2.62094,3815.5,3815.4,0.784]
[1717734012035,2.62094,3815.5,3815.4,0.89000336]
[1717734014839,2.62094,3815.5,3815.4,0.10600336]
[1717734015040,2.62106,3815.3,3815.0,20.0]
[1717734015243,2.62106,3815.3,3815.2,0.784]
[1717734019998,2.4567,3815.8,3815.2,0.784]
[1717734019999,2.62088,3815.6,3815.2,0.784]